[Event "*** Titled Tuesday 3|2 Blitz"]
[Site "Chess.com"]
[Date "2016.02.02"]
[Round "3"]
[White "Mornar1951"]
[Black "BahadirOzen"]
[Result "0-1"]
[WhiteElo "2615"]
[BlackElo "2510"]
[TimeControl "180+2"]
[EndTime "11:40:40 PST"]
[Termination "BahadirOzen won by resignation"]

1. Nf3 {[%clk 0:03:01.9]} 1... d6 {[%clk 0:02:59.4]} 2. d4 {[%clk 0:03:01.7]}
2... g6 {[%clk 0:02:59.7]} 3. c4 {[%clk 0:03:01.9]} 3... Bg7 {[%clk 0:03:00.9]}
4. e4 {[%clk 0:03:02.1]} 4... e5 {[%clk 0:03:01.6]} 5. Nc3 {[%clk 0:02:55.8]}
5... exd4 {[%clk 0:03:02.5]} 6. Nxd4 {[%clk 0:02:57.7]} 6... Nc6 {[%clk
0:03:04.4]} 7. Be3 {[%clk 0:02:55.8]} 7... Nge7 {[%clk 0:03:05.3]} 8. h4 {[%clk
0:02:55.6]} 8... f5 {[%clk 0:03:00.6]} 9. h5 {[%clk 0:02:56.1]} 9... fxe4 {[%clk
0:02:57.3]} 10. hxg6 {[%clk 0:02:56.8]} 10... hxg6 {[%clk 0:02:58]} 11. Rxh8+
{[%clk 0:02:57.6]} 11... Bxh8 {[%clk 0:02:59.9]} 12. Nxe4 {[%clk 0:02:55.8]}
12... Bf5 {[%clk 0:03:00.7]} 13. Nxf5 {[%clk 0:02:36.6]} 13... gxf5 {[%clk
0:03:01.6]} 14. Nc3 {[%clk 0:02:36.5]} 14... Bxc3+ {[%clk 0:02:28.6]} 15. bxc3
{[%clk 0:02:38.4]} 15... b6 {[%clk 0:02:20]} 16. Qh5+ {[%clk 0:02:30.8]} 16...
Kd7 {[%clk 0:02:20.7]} 17. c5 {[%clk 0:02:11.3]} 17... bxc5 {[%clk 0:02:13.2]}
18. Bxc5 {[%clk 0:02:11]} 18... Qh8 {[%clk 0:02:05.9]} 19. Qxh8 {[%clk
0:02:11.7]} 19... Rxh8 {[%clk 0:02:07.8]} 20. Be3 {[%clk 0:02:11.6]} 20... Nd5
{[%clk 0:02:05]} 21. Bd2 {[%clk 0:02:05.2]} 21... Re8+ {[%clk 0:02:00.4]} 22.
Kd1 {[%clk 0:02:03.5]} 22... Ne5 {[%clk 0:01:59.3]} 23. Rb1 {[%clk 0:01:42.1]}
23... Ng4 {[%clk 0:01:52.3]} 24. Be1 {[%clk 0:01:42.4]} 24... Nxf2+ {[%clk
0:01:19.3]} 25. Kc2 {[%clk 0:01:43.4]} 25... Ne3+ {[%clk 0:01:16.3]} 26. Kc1
{[%clk 0:01:30]} 26... Nxf1 {[%clk 0:01:14.9]} 27. Bxf2 {[%clk 0:01:31.1]} 27...
Re2 {[%clk 0:01:15.5]} 28. Rb2 {[%clk 0:01:29.3]} 28... Rxb2 {[%clk 0:01:15.2]}
29. Kxb2 {[%clk 0:01:31.2]} 29... c5 {[%clk 0:01:13.6]} 30. Kc2 {[%clk
0:01:30.6]} 30... Nh2 {[%clk 0:01:14.1]} 31. Kd3 {[%clk 0:01:27.7]} 31... Ng4
{[%clk 0:01:14.6]} 32. Bg3 {[%clk 0:01:21.7]} 32... Kc6 {[%clk 0:01:13.7]} 33.
c4 {[%clk 0:01:22.5]} 33... d5 {[%clk 0:01:14.2]} 34. cxd5+ {[%clk 0:01:23.6]}
34... Kxd5 {[%clk 0:01:16.1]} 35. Bb8 {[%clk 0:01:24.3]} 35... a6 {[%clk
0:01:16.4]} 36. Bf4 {[%clk 0:01:14.7]} 36... Nf2+ {[%clk 0:01:14.8]} 37. Kc3
{[%clk 0:01:10]} 37... c4 {[%clk 0:01:11.8]} 38. Bh6 {[%clk 0:00:59.2]} 38... a5
{[%clk 0:01:09.4]} 39. Kc2 {[%clk 0:00:45.7]} 39... Ne4 {[%clk 0:00:59.4]} 40.
Bf8 {[%clk 0:00:36.5]} 40... Kd4 {[%clk 0:00:58]} 41. Be7 {[%clk 0:00:26.1]}
41... Ke3 {[%clk 0:00:57.1]} 42. a4 {[%clk 0:00:25.4]} 42... Kd4 {[%clk
0:00:44.1]} 43. Bd8 {[%clk 0:00:24.5]} 43... Nc5 {[%clk 0:00:45.3]} 44. Bxa5
{[%clk 0:00:25.4]} 44... Nxa4 {[%clk 0:00:46.5]} 45. Bd2 {[%clk 0:00:22.7]}
45... Nc5 {[%clk 0:00:45.5]} 46. Bf4 {[%clk 0:00:21.6]} 46... Ne4 {[%clk
0:00:43]} 47. Bc7 {[%clk 0:00:20.6]} 47... Ke3 {[%clk 0:00:43]} 48. Bb6+ {[%clk
0:00:17.1]} 48... Kf4 {[%clk 0:00:42.2]} 49. Bc7+ {[%clk 0:00:17.4]} 49... Kg4
{[%clk 0:00:43.7]} 50. Kb2 {[%clk 0:00:17.3]} 50... Nf6 {[%clk 0:00:40.8]} 51.
Be5 {[%clk 0:00:17]} 51... Nd5 {[%clk 0:00:41.7]} 52. Ka3 {[%clk 0:00:17.2]}
52... f4 {[%clk 0:00:38]} 53. Kb2 {[%clk 0:00:17]} 53... Kf5 {[%clk 0:00:33.8]}
54. Bb8 {[%clk 0:00:17.7]} 54... Ke4 {[%clk 0:00:34.7]} 55. Kc2 {[%clk 0:00:18]}
55... Ke3 {[%clk 0:00:16.9]} 56. Bd6 {[%clk 0:00:18.4]} 56... Kd4 {[%clk
0:00:07]} 57. Kd2 {[%clk 0:00:19.7]} 57... c3+ {[%clk 0:00:07.9]} 58. Ke2 {[%clk
0:00:19.9]} 58... Ke4 {[%clk 0:00:08.9]} 59. Ba3 {[%clk 0:00:18.3]} 59... Ne3
{[%clk 0:00:09.8]} 60. Kf2 {[%clk 0:00:18.8]} 60... Ng4+ {[%clk 0:00:10]} 61.
Ke2 {[%clk 0:00:19.4]} 61... Ne5 {[%clk 0:00:11.8]} 62. Bb4 {[%clk 0:00:17.2]}
62... c2 {[%clk 0:00:10.3]} 63. Kd2 {[%clk 0:00:16.8]} 63... c1=Q+ {[%clk
0:00:10.1]} 64. Kxc1 {[%clk 0:00:17.2]} 64... Nd3+ {[%clk 0:00:11.8]} 65. Kd2
{[%clk 0:00:18.4]} 65... Nxb4 {[%clk 0:00:13.7]} 66. Ke2 {[%clk 0:00:20.1]}
66... Nd5 {[%clk 0:00:14.5]} 67. Kf2 {[%clk 0:00:21.2]} 67... Ne3 {[%clk
0:00:16]} 68. g3 {[%clk 0:00:22]} 68... Ng4+ {[%clk 0:00:16.7]} 69. Kg2 {[%clk
0:00:22.7]} 69... f3+ {[%clk 0:00:18.2]} 70. Kh3 {[%clk 0:00:24]} 70... Ke3
{[%clk 0:00:18.5]} 71. Kxg4 {[%clk 0:00:24.4]} 71... f2 {[%clk 0:00:20]} 0-1

[Event "*** Titled Tuesday 3|2 Blitz"]
[Site "Chess.com"]
[Date "2016.02.02"]
[Round "3"]
[White "Dlugy"]
[Black "tigra"]
[Result "1/2-1/2"]
[WhiteElo "2566"]
[BlackElo "2375"]
[TimeControl "180+2"]
[EndTime "11:41:44 PST"]
[Termination "Game drawn by agreement"]

1. d4 {[%clk 0:03:01.9]} 1... Nf6 {[%clk 0:03:00]} 2. Bf4 {[%clk 0:03:02.6]}
2... g6 {[%clk 0:03:00.2]} 3. Nc3 {[%clk 0:03:03.3]} 3... Bg7 {[%clk 0:03:01.7]}
4. e4 {[%clk 0:03:03.8]} 4... d6 {[%clk 0:03:02.9]} 5. Qd2 {[%clk 0:03:05.2]}
5... Nc6 {[%clk 0:02:36.5]} 6. Bb5 {[%clk 0:02:50.8]} 6... O-O {[%clk
0:02:34.9]} 7. Bxc6 {[%clk 0:02:49.5]} 7... bxc6 {[%clk 0:02:35.1]} 8. Nge2
{[%clk 0:02:51.4]} 8... Re8 {[%clk 0:02:35]} 9. O-O {[%clk 0:02:49.9]} 9... Ba6
{[%clk 0:02:32.1]} 10. Rfe1 {[%clk 0:02:50.2]} 10... Qb8 {[%clk 0:02:31.3]} 11.
Rab1 {[%clk 0:02:48.9]} 11... Qb4 {[%clk 0:02:24.4]} 12. a3 {[%clk 0:02:46.9]}
12... Qa5 {[%clk 0:02:25]} 13. h3 {[%clk 0:02:35.6]} 13... Nd7 {[%clk
0:02:24.9]} 14. b4 {[%clk 0:02:32.4]} 14... Qb6 {[%clk 0:02:21]} 15. Bh6 {[%clk
0:02:29.3]} 15... Bh8 {[%clk 0:02:19.4]} 16. Be3 {[%clk 0:02:30.4]} 16... Bc4
{[%clk 0:02:17]} 17. f4 {[%clk 0:02:30]} 17... a5 {[%clk 0:02:13]} 18. e5 {[%clk
0:02:30.3]} 18... axb4 {[%clk 0:02:10.6]} 19. Rxb4 {[%clk 0:02:24.2]} 19... Qa6
{[%clk 0:02:11.3]} 20. Ra4 {[%clk 0:02:25.4]} 20... Qxa4 {[%clk 0:02:07.2]} 21.
Nxa4 {[%clk 0:02:26.3]} 21... Rxa4 {[%clk 0:02:08.9]} 22. Ra1 {[%clk 0:02:08.1]}
22... Rea8 {[%clk 0:02:04.4]} 23. Nc3 {[%clk 0:02:07.6]} 23... Rxa3 {[%clk
0:02:04.6]} 24. Rxa3 {[%clk 0:02:08.8]} 24... Rxa3 {[%clk 0:02:06.3]} 25. Ne4
{[%clk 0:02:10.4]} 25... Bd5 {[%clk 0:01:59.8]} 26. Nc3 {[%clk 0:02:07.4]} 26...
Bc4 {[%clk 0:01:59.2]} 27. Bf2 {[%clk 0:01:57.2]} 27... Nb6 {[%clk 0:01:57.2]}
28. Ne4 {[%clk 0:01:54.4]} 28... Bd5 {[%clk 0:01:56.9]} 29. Qc1 {[%clk
0:01:49.2]} 29... Ra8 {[%clk 0:01:51.4]} 30. Nd2 {[%clk 0:01:50.2]} 30... Nc4
{[%clk 0:01:30.2]} 31. Nxc4 {[%clk 0:01:50.7]} 31... Bxc4 {[%clk 0:01:31.8]} 32.
Qb2 {[%clk 0:01:52.4]} 32... Ba6 {[%clk 0:01:20.5]} 33. Qc3 {[%clk 0:01:40.8]}
33... Bb7 {[%clk 0:01:21.3]} 34. Qb3 {[%clk 0:01:36.4]} 34... Bc8 {[%clk
0:01:21.1]} 35. Bh4 {[%clk 0:01:35]} 35... Kf8 {[%clk 0:01:15.9]} 36. c4 {[%clk
0:01:28.9]} 36... h6 {[%clk 0:01:13.2]} 37. Qe3 {[%clk 0:01:25.6]} 37... Be6
{[%clk 0:01:02.5]} 38. f5 {[%clk 0:01:14.6]} 38... Bxf5 {[%clk 0:01:03.2]} 39.
Qxh6+ {[%clk 0:01:15.7]} 39... Kg8 {[%clk 0:01:04.1]} 40. Qe3 {[%clk 0:01:02.6]}
40... Kf8 {[%clk 0:00:59.3]} 41. Kh2 {[%clk 0:00:59.9]} 41... Re8 {[%clk
0:00:46.5]} 42. Bg3 {[%clk 0:00:57.1]} 42... Be6 {[%clk 0:00:44.1]} 43. Qf3
{[%clk 0:00:54.6]} 43... dxe5 {[%clk 0:00:20.2]} 44. dxe5 {[%clk 0:00:52]} 44...
Bxc4 {[%clk 0:00:20.5]} 45. Qxc6 {[%clk 0:00:52.5]} 45... Be6 {[%clk 0:00:21.2]}
46. Qxc7 {[%clk 0:00:54]} 46... Bg7 {[%clk 0:00:22.5]} 47. Bf4 {[%clk
0:00:53.4]} 47... Bf5 {[%clk 0:00:23.3]} 48. g4 {[%clk 0:00:53.1]} 48... Be6
{[%clk 0:00:24.8]} 49. Kg3 {[%clk 0:00:52.3]} 49... Rc8 {[%clk 0:00:25.9]} 50.
Qb7 {[%clk 0:00:52.6]} 50... Ke8 {[%clk 0:00:26.6]} 51. Qb5+ {[%clk 0:00:49.4]}
51... Bd7 {[%clk 0:00:27]} 52. Qd3 {[%clk 0:00:49.1]} 52... Be6 {[%clk
0:00:28.3]} 53. h4 {[%clk 0:00:49.7]} 53... Kf8 {[%clk 0:00:27.8]} 54. h5 {[%clk
0:00:50.7]} 54... g5 {[%clk 0:00:29.1]} 55. Bxg5 {[%clk 0:00:49.3]} 55... Bxe5+
{[%clk 0:00:30.7]} 56. Kf2 {[%clk 0:00:44]} 56... Bg7 {[%clk 0:00:20.5]} 57. h6
{[%clk 0:00:33.5]} 57... Bh8 {[%clk 0:00:21.4]} 58. Qa3 {[%clk 0:00:25.8]} 58...
Kg8 {[%clk 0:00:17.9]} 59. Qxe7 {[%clk 0:00:25.5]} 59... Bd4+ {[%clk 0:00:17.1]}
60. Be3 {[%clk 0:00:25.3]} 60... Bxe3+ {[%clk 0:00:16.9]} 61. Kxe3 {[%clk
0:00:26.4]} 61... Kh7 {[%clk 0:00:17.9]} 62. Qf6 {[%clk 0:00:26.3]} 62... Rg8
{[%clk 0:00:18.9]} 63. g5 {[%clk 0:00:27.7]} 63... Rg6 {[%clk 0:00:20]} 64. Qf4
{[%clk 0:00:28.9]} 64... Rg8 {[%clk 0:00:20.9]} 65. Kd4 {[%clk 0:00:30.2]} 65...
Rg6 {[%clk 0:00:22.3]} 66. Ke5 {[%clk 0:00:31.5]} 66... Rg8 {[%clk 0:00:23.4]}
67. Kd6 {[%clk 0:00:32.9]} 67... Rg6 {[%clk 0:00:23.7]} 68. Ke7 {[%clk
0:00:34.1]} 68... Rg8 {[%clk 0:00:24.8]} 69. Qe4+ {[%clk 0:00:35.4]} 69... Rg6
{[%clk 0:00:24.5]} 70. Qd3 {[%clk 0:00:35.5]} 70... Ba2 {[%clk 0:00:23.3]} 71.
Qf5 {[%clk 0:00:32.8]} 71... Be6 {[%clk 0:00:24]} 72. Qe4 {[%clk 0:00:32.5]}
72... Ba2 {[%clk 0:00:24.7]} 73. Kf8 {[%clk 0:00:33.6]} 73... Be6 {[%clk
0:00:24.6]} 74. Qd3 {[%clk 0:00:34]} 74... Ba2 {[%clk 0:00:25.2]} 75. Qe4 {[%clk
0:00:32.4]} 75... Be6 {[%clk 0:00:25.8]} 76. Qc2 {[%clk 0:00:33.5]} 76... Bd5
{[%clk 0:00:26.4]} 77. Qc3 {[%clk 0:00:34.3]} 77... Rg8+ {[%clk 0:00:26.6]} 78.
Ke7 {[%clk 0:00:34.9]} 78... Rxg5 {[%clk 0:00:26.6]} 79. Qe3 {[%clk 0:00:34.4]}
79... Rg6 {[%clk 0:00:26.5]} 80. Kf8 {[%clk 0:00:33.9]} 80... Be6 {[%clk
0:00:26.3]} 81. Qe5 {[%clk 0:00:32.5]} 81... Ba2 {[%clk 0:00:26]} 82. Qe2 {[%clk
0:00:29.5]} 82... Bb3 {[%clk 0:00:26.3]} 83. Qf3 {[%clk 0:00:26.5]} 83... Bc4
{[%clk 0:00:26.5]} 84. Qf4 {[%clk 0:00:26.3]} 84... Bd5 {[%clk 0:00:27.3]} 85.
Qe5 {[%clk 0:00:27.3]} 85... Be6 {[%clk 0:00:27.1]} 86. Ke7 {[%clk 0:00:26.6]}
86... Bc4 {[%clk 0:00:27.3]} 87. Qf4 {[%clk 0:00:27.7]} 87... Bd5 {[%clk
0:00:28]} 88. Qd4 {[%clk 0:00:27.9]} 88... Bb3 {[%clk 0:00:28.4]} 89. Qd3 {[%clk
0:00:28]} 89... Ba2 {[%clk 0:00:29]} 90. Kf8 {[%clk 0:00:28.3]} 90... Be6 {[%clk
0:00:28.8]} 91. Qe4 {[%clk 0:00:28.7]} 91... Bb3 {[%clk 0:00:29.3]} 92. Qd3
{[%clk 0:00:28.4]} 1/2-1/2

[Event "*** Titled Tuesday 3|2 Blitz"]
[Site "Chess.com"]
[Date "2016.02.02"]
[Round "3"]
[White "KyronGriffith"]
[Black "APL2001"]
[Result "1-0"]
[WhiteElo "2266"]
[BlackElo "2142"]
[TimeControl "180+2"]
[EndTime "11:41:49 PST"]
[Termination "KyronGriffith won on time"]

1. e4 {[%clk 0:03:01.9]} 1... Nf6 {[%clk 0:02:53]} 2. Nc3 {[%clk 0:02:58]} 2...
e5 {[%clk 0:02:15]} 3. Nf3 {[%clk 0:02:56]} 3... Nc6 {[%clk 0:02:15.8]} 4. d4
{[%clk 0:02:57.6]} 4... exd4 {[%clk 0:02:13.7]} 5. Nxd4 {[%clk 0:02:59.5]} 5...
Bb4 {[%clk 0:02:14.6]} 6. Nxc6 {[%clk 0:03:00.9]} 6... bxc6 {[%clk 0:02:13.6]}
7. Bd3 {[%clk 0:03:02.3]} 7... d5 {[%clk 0:02:13]} 8. exd5 {[%clk 0:03:04.2]}
8... cxd5 {[%clk 0:02:14.3]} 9. O-O {[%clk 0:03:05.8]} 9... O-O {[%clk
0:02:15.5]} 10. h3 {[%clk 0:03:07.5]} 10... c6 {[%clk 0:02:15.6]} 11. Qf3 {[%clk
0:03:09.2]} 11... Be6 {[%clk 0:02:14.6]} 12. a3 {[%clk 0:02:58.6]} 12... Be7
{[%clk 0:02:11.9]} 13. Bf4 {[%clk 0:02:57.6]} 13... c5 {[%clk 0:02:08.7]} 14.
Rfe1 {[%clk 0:02:51]} 14... Re8 {[%clk 0:02:08.6]} 15. Rad1 {[%clk 0:02:49.4]}
15... Qb6 {[%clk 0:02:05]} 16. b3 {[%clk 0:02:39.9]} 16... Rac8 {[%clk 0:02:03]}
17. Na4 {[%clk 0:02:28.5]} 17... Qa5 {[%clk 0:02:00.5]} 18. Bd2 {[%clk
0:01:36.5]} 18... Qc7 {[%clk 0:02:00.2]} 19. Bf4 {[%clk 0:01:31.9]} 19... Qa5
{[%clk 0:01:53.5]} 20. Bd2 {[%clk 0:01:32.6]} 20... Qc7 {[%clk 0:01:54.2]} 21.
Bf5 {[%clk 0:01:24.6]} 21... Bxf5 {[%clk 0:01:39.2]} 22. Qxf5 {[%clk 0:01:26.5]}
22... Rcd8 {[%clk 0:01:22.4]} 23. Bf4 {[%clk 0:01:15.3]} 23... Bd6 {[%clk
0:01:13.7]} 24. Bg5 {[%clk 0:01:11.4]} 24... Re5 {[%clk 0:00:59]} 25. Rxe5
{[%clk 0:01:08.3]} 25... Bxe5 {[%clk 0:01:00.3]} 26. Bxf6 {[%clk 0:01:07.1]}
26... Bxf6 {[%clk 0:01:01.4]} 27. Rxd5 {[%clk 0:01:07.9]} 27... Re8 {[%clk
0:01:00.6]} 28. g3 {[%clk 0:00:48.9]} 28... c4 {[%clk 0:00:59.7]} 29. Rc5 {[%clk
0:00:40.5]} 29... Qb7 {[%clk 0:00:54.7]} 30. Qd5 {[%clk 0:00:32.6]} 30... Qe7
{[%clk 0:00:40.5]} 31. Qxc4 {[%clk 0:00:21]} 31... Qd7 {[%clk 0:00:27.1]} 32.
Kg2 {[%clk 0:00:18.5]} 32... Qb7+ {[%clk 0:00:27.9]} 33. Qd5 {[%clk 0:00:19]}
33... Qe7 {[%clk 0:00:29]} 34. Rc6 {[%clk 0:00:17.3]} 34... Rd8 {[%clk
0:00:28.2]} 35. Qc4 {[%clk 0:00:15.4]} 35... Qb7 {[%clk 0:00:27.4]} 36. Kh2
{[%clk 0:00:15.1]} 36... h6 {[%clk 0:00:13.7]} 37. Rc7 {[%clk 0:00:14.7]} 37...
Qf3 {[%clk 0:00:14.5]} 38. Qf4 {[%clk 0:00:11.4]} 38... Qd1 {[%clk 0:00:12.5]}
39. g4 {[%clk 0:00:05.5]} 39... Qe1 {[%clk 0:00:12.8]} 40. Rc5 {[%clk
0:00:06.1]} 40... Rd2 {[%clk 0:00:10.2]} 41. Rf5 {[%clk 0:00:07]} 41... Re2
{[%clk 0:00:08.7]} 42. Rxf6 {[%clk 0:00:07.1]} 42... gxf6 {[%clk 0:00:08.4]} 43.
Kg3 {[%clk 0:00:09]} 43... Qg1+ {[%clk 0:00:09.1]} 44. Kh4 {[%clk 0:00:10.3]}
44... Qxf2+ {[%clk 0:00:09.7]} 45. Qxf2 {[%clk 0:00:11.3]} 45... Rxf2 {[%clk
0:00:09.8]} 46. c4 {[%clk 0:00:13.2]} 46... Rf3 {[%clk 0:00:11.2]} 47. Nc5
{[%clk 0:00:13.8]} 47... f5 {[%clk 0:00:11.4]} 48. a4 {[%clk 0:00:12.9]} 48...
f4 {[%clk 0:00:12.1]} 49. b4 {[%clk 0:00:11.6]} 49... Rc3 {[%clk 0:00:12.5]} 50.
b5 {[%clk 0:00:09.6]} 50... Rxc4 {[%clk 0:00:13.6]} 51. Nd3 {[%clk 0:00:10.9]}
51... Rxa4 {[%clk 0:00:14.7]} 52. Kh5 {[%clk 0:00:11.8]} 52... Kh7 {[%clk
0:00:14.9]} 53. h4 {[%clk 0:00:12.7]} 53... Rd4 {[%clk 0:00:06]} 54. Nf2 {[%clk
0:00:10]} 54... Rd5+ {[%clk 0:00:07.3]} 55. g5 {[%clk 0:00:11.2]} 55... hxg5
{[%clk 0:00:08.6]} 56. hxg5 {[%clk 0:00:13.1]} 56... Rxb5 {[%clk 0:00:10]} 57.
Ne4 {[%clk 0:00:14.6]} 57... a5 {[%clk 0:00:10.9]} 58. Kg4 {[%clk 0:00:16]}
58... Rb4 {[%clk 0:00:10.3]} 59. Nf6+ {[%clk 0:00:16]} 59... Kg6 {[%clk
0:00:10.2]} 60. Nd5 {[%clk 0:00:17.9]} 60... Rd4 {[%clk 0:00:10.8]} 61. Ne7+
{[%clk 0:00:17.6]} 61... Kh7 {[%clk 0:00:11]} 62. Nc6 {[%clk 0:00:18.4]} 62...
Ra4 {[%clk 0:00:10.1]} 63. Ne5 {[%clk 0:00:19.4]} 63... Kg7 {[%clk 0:00:06.6]}
64. Nc6 {[%clk 0:00:19.1]} 64... Ra1 {[%clk 0:00:07.3]} 65. Kxf4 {[%clk
0:00:19.8]} 65... a4 {[%clk 0:00:08.9]} 66. Ne7 {[%clk 0:00:18.9]} 66... a3
{[%clk 0:00:10.1]} 67. Nf5+ {[%clk 0:00:20.4]} 67... Kf8 {[%clk 0:00:07.2]} 68.
Ne3 {[%clk 0:00:22.1]} 68... a2 {[%clk 0:00:08.6]} 69. Nc2 {[%clk 0:00:23.5]}
69... Rf1+ {[%clk 0:00:04.7]} 70. Kg3 {[%clk 0:00:24.2]} 1-0

[Event "*** Titled Tuesday 3|2 Blitz"]
[Site "Chess.com"]
[Date "2016.02.02"]
[Round "3"]
[White "Gabrielian_Artur"]
[Black "vovkcoach"]
[Result "1-0"]
[WhiteElo "2504"]
[BlackElo "2540"]
[TimeControl "180+2"]
[EndTime "11:42:58 PST"]
[Termination "Gabrielian_Artur won by resignation"]

1. e4 {[%clk 0:03:01.3]} 1... c5 {[%clk 0:02:47.3]} 2. c3 {[%clk 0:02:41.2]}
2... Nf6 {[%clk 0:02:46.7]} 3. e5 {[%clk 0:02:31.8]} 3... Nd5 {[%clk 0:02:47.7]}
4. Bc4 {[%clk 0:02:32.3]} 4... e6 {[%clk 0:02:47.8]} 5. Nf3 {[%clk 0:02:32.8]}
5... Nc6 {[%clk 0:02:48.2]} 6. O-O {[%clk 0:02:33.1]} 6... d6 {[%clk 0:02:47.3]}
7. exd6 {[%clk 0:02:33.8]} 7... Bxd6 {[%clk 0:02:47.5]} 8. d4 {[%clk 0:02:25.3]}
8... cxd4 {[%clk 0:02:43.7]} 9. cxd4 {[%clk 0:02:26.1]} 9... O-O {[%clk
0:02:43]} 10. Nc3 {[%clk 0:02:27.2]} 10... Nxc3 {[%clk 0:02:36.7]} 11. bxc3
{[%clk 0:02:28]} 11... Qc7 {[%clk 0:02:37.8]} 12. Bd3 {[%clk 0:02:26.7]} 12...
Bf4 {[%clk 0:02:37.8]} 13. Re1 {[%clk 0:02:11.2]} 13... Bxc1 {[%clk 0:02:32]}
14. Rxc1 {[%clk 0:02:13.1]} 14... h6 {[%clk 0:02:26]} 15. Nd2 {[%clk 0:02:11.1]}
15... Bd7 {[%clk 0:02:15.5]} 16. Qh5 {[%clk 0:02:11.4]} 16... Rad8 {[%clk
0:01:52.3]} 17. Re3 {[%clk 0:02:11.4]} 17... f5 {[%clk 0:01:42.8]} 18. Rce1
{[%clk 0:02:08]} 18... Be8 {[%clk 0:01:34.1]} 19. Qe2 {[%clk 0:02:02.2]} 19...
Bf7 {[%clk 0:01:31.3]} 20. Bc4 {[%clk 0:02:02.4]} 20... e5 {[%clk 0:01:31.9]}
21. dxe5 {[%clk 0:02:01.2]} 21... Bxc4 {[%clk 0:01:09.6]} 22. Qxc4+ {[%clk
0:02:00.1]} 22... Kh7 {[%clk 0:01:09.8]} 23. Nf3 {[%clk 0:02:00.7]} 23... Qe7
{[%clk 0:00:50.1]} 24. h4 {[%clk 0:01:59.2]} 24... Rd7 {[%clk 0:00:44.4]} 25.
Nd4 {[%clk 0:01:51.7]} 25... Qxh4 {[%clk 0:00:40.8]} 26. e6 {[%clk 0:01:08.1]}
26... Nxd4 {[%clk 0:00:26]} 27. cxd4 {[%clk 0:01:09.1]} 27... Qxd4 {[%clk
0:00:18.8]} 28. Qb3 {[%clk 0:01:07.5]} 28... Re7 {[%clk 0:00:19.3]} 29. Rd3
{[%clk 0:01:04.5]} 29... Qf6 {[%clk 0:00:19.4]} 30. Rd7 {[%clk 0:01:00]} 30...
Rfe8 {[%clk 0:00:18.6]} 31. Rd6 {[%clk 0:00:58.4]} 31... b6 {[%clk 0:00:18.6]}
32. Qd5 {[%clk 0:00:59.1]} 32... h5 {[%clk 0:00:19.3]} 33. Re5 {[%clk
0:00:58.5]} 33... g6 {[%clk 0:00:20.1]} 34. a4 {[%clk 0:00:59]} 34... h4 {[%clk
0:00:18.5]} 35. Qd4 {[%clk 0:00:55.6]} 35... Kh6 {[%clk 0:00:19.3]} 36. Qf4+
{[%clk 0:00:56.2]} 36... Qg5 {[%clk 0:00:20]} 37. Qd4 {[%clk 0:00:57.4]} 37...
Rc7 {[%clk 0:00:18.3]} 38. Kh2 {[%clk 0:00:52.9]} 38... Rce7 {[%clk 0:00:07.8]}
39. Rd7 {[%clk 0:00:53.7]} 39... Qf6 {[%clk 0:00:06.5]} 40. Rd6 {[%clk
0:00:54.8]} 40... Qg5 {[%clk 0:00:07]} 41. Rc6 {[%clk 0:00:48]} 41... Qg4 {[%clk
0:00:06.8]} 42. Qe3+ {[%clk 0:00:46.6]} 42... Qg5 {[%clk 0:00:07.6]} 43. Qd4
{[%clk 0:00:44.8]} 43... Qf6 {[%clk 0:00:07.5]} 44. Qd6 {[%clk 0:00:44.1]} 44...
Qg5 {[%clk 0:00:06.1]} 45. Re3 {[%clk 0:00:43.3]} 45... f4 {[%clk 0:00:06.1]}
46. Re5 {[%clk 0:00:42.9]} 46... Qg4 {[%clk 0:00:07.2]} 47. Qd5 {[%clk
0:00:40.9]} 47... g5 {[%clk 0:00:06.4]} 48. Qe4 {[%clk 0:00:36.9]} 48... Qh5
{[%clk 0:00:06.8]} 49. Rd6 {[%clk 0:00:33.2]} 49... Qg6 {[%clk 0:00:07.6]} 50.
Qd5 {[%clk 0:00:34.3]} 50... Qf6 {[%clk 0:00:08.2]} 51. Rf5 {[%clk 0:00:31.7]}
51... Qg6 {[%clk 0:00:09.2]} 52. Re5 {[%clk 0:00:31.1]} 52... Qf6 {[%clk
0:00:09.9]} 53. f3 {[%clk 0:00:32.6]} 53... Qg6 {[%clk 0:00:10.3]} 54. Kh3
{[%clk 0:00:31.3]} 54... Qf6 {[%clk 0:00:10.1]} 55. Kg4 {[%clk 0:00:31.3]} 55...
h3 {[%clk 0:00:10.1]} 56. gxh3 {[%clk 0:00:31.2]} 56... Rg8 {[%clk 0:00:09.5]}
57. Qe4 {[%clk 0:00:23.6]} 57... Rh8 {[%clk 0:00:04.7]} 58. Qf5 {[%clk
0:00:21.7]} 58... Qg6 {[%clk 0:00:04.2]} 59. Qxg6+ {[%clk 0:00:21.7]} 59... Kxg6
{[%clk 0:00:06.1]} 60. Rxg5+ {[%clk 0:00:23.3]} 60... Kf6 {[%clk 0:00:08]} 61.
Rf5+ {[%clk 0:00:24.4]} 61... Kg6 {[%clk 0:00:09.2]} 62. Rxf4 {[%clk 0:00:24.2]}
62... Rh5 {[%clk 0:00:09.8]} 63. Kg3 {[%clk 0:00:23.3]} 63... Re5 {[%clk
0:00:10.2]} 64. Re4 {[%clk 0:00:24.6]} 64... Kf6 {[%clk 0:00:11]} 65. Kf4 {[%clk
0:00:23.1]} 65... Rf5+ {[%clk 0:00:12]} 66. Ke3 {[%clk 0:00:24.1]} 66... Rh5
{[%clk 0:00:12.9]} 67. h4 {[%clk 0:00:25.6]} 67... Re5 {[%clk 0:00:10.5]} 68.
Rxe5 {[%clk 0:00:19.5]} 68... Kxe5 {[%clk 0:00:11]} 69. Rd7 {[%clk 0:00:20.9]}
69... Rxe6 {[%clk 0:00:11.6]} 70. Rxa7 {[%clk 0:00:22]} 70... Kf5+ {[%clk
0:00:13.1]} 71. Kf2 {[%clk 0:00:23]} 71... Kg6 {[%clk 0:00:14.1]} 72. Ra6 {[%clk
0:00:23.6]} 72... Kh5 {[%clk 0:00:15.1]} 73. Kg3 {[%clk 0:00:23.7]} 73... Rg6+
{[%clk 0:00:15.3]} 74. Kf4 {[%clk 0:00:24.9]} 74... Kxh4 {[%clk 0:00:14.5]} 75.
a5 {[%clk 0:00:25.8]} 75... Rf6+ {[%clk 0:00:15.3]} 76. Ke5 {[%clk 0:00:26.4]}
76... Kg5 {[%clk 0:00:15.2]} 77. axb6 {[%clk 0:00:25.4]} 77... Rxf3 {[%clk
0:00:15.8]} 78. b7 {[%clk 0:00:25.1]} 78... Rb3 {[%clk 0:00:15]} 79. Ra7 {[%clk
0:00:26.1]} 79... Rb6 {[%clk 0:00:15.4]} 80. Kd5 {[%clk 0:00:27.1]} 80... Kf5
{[%clk 0:00:15.6]} 81. Kc5 {[%clk 0:00:28.4]} 81... Rb1 {[%clk 0:00:15.9]} 82.
Kd6 {[%clk 0:00:29.7]} 82... Kf6 {[%clk 0:00:07.7]} 83. Kc7 {[%clk 0:00:30.7]}
83... Rc1+ {[%clk 0:00:08.7]} 84. Kb8 {[%clk 0:00:31.9]} 84... Ke7 {[%clk
0:00:10.6]} 85. Ka8 {[%clk 0:00:32.8]} 1-0

[Event "*** Titled Tuesday 3|2 Blitz"]
[Site "Chess.com"]
[Date "2016.02.02"]
[Round "4"]
[White "Imre91"]
[Black "amaidel"]
[Result "0-1"]
[WhiteElo "2490"]
[BlackElo "2421"]
[TimeControl "180+2"]
[EndTime "11:47:04 PST"]
[Termination "amaidel won by resignation"]

1. c4 {[%clk 0:03:01.9]} 1... e5 {[%clk 0:02:32.2]} 2. g3 {[%clk 0:03:01.8]}
2... Nf6 {[%clk 0:02:31.7]} 3. Bg2 {[%clk 0:03:02.8]} 3... d5 {[%clk 0:02:32.4]}
4. cxd5 {[%clk 0:03:04.7]} 4... Nxd5 {[%clk 0:02:33.5]} 5. Nc3 {[%clk
0:03:06.3]} 5... Nb6 {[%clk 0:02:34]} 6. a3 {[%clk 0:03:05.8]} 6... Be7 {[%clk
0:02:34.4]} 7. b4 {[%clk 0:03:06.6]} 7... O-O {[%clk 0:02:34.7]} 8. Nf3 {[%clk
0:03:07.5]} 8... Nc6 {[%clk 0:02:22.9]} 9. O-O {[%clk 0:03:08.3]} 9... f6 {[%clk
0:02:10.4]} 10. b5 {[%clk 0:03:00.1]} 10... Nd4 {[%clk 0:02:10.7]} 11. a4 {[%clk
0:03:01.6]} 11... Be6 {[%clk 0:02:07.9]} 12. Rb1 {[%clk 0:03:00.9]} 12... c5
{[%clk 0:02:00.3]} 13. bxc6 {[%clk 0:02:59.4]} 13... bxc6 {[%clk 0:02:01]} 14.
d3 {[%clk 0:02:51.6]} 14... Rc8 {[%clk 0:01:58.1]} 15. Bd2 {[%clk 0:02:52.1]}
15... c5 {[%clk 0:01:58]} 16. a5 {[%clk 0:02:37.4]} 16... Nd5 {[%clk 0:01:55.3]}
17. Qa4 {[%clk 0:02:35.2]} 17... Nxc3 {[%clk 0:01:52.6]} 0-1